fUSD/lending_fUSD_20250507
["ID","MTS","AMOUNT","RATE_DAILY","PERIOD"]
[360160337,1746582660005,-450.0,0.00019577,2]
[360160338,1746582660015,-151.0,0.00019577,2]
[360160339,1746582660024,-151.0,0.00019577,2]
[360160340,1746582660033,-152.165625,0.00019577,2]
[360160341,1746582660043,-151.0,0.00019577,2]
[360160342,1746582660053,-151.0,0.00019577,2]
[360160343,1746582660063,-450.0,0.00019577,2]
[360160344,1746582660073,-493.59,0.00019577,2]
[360160345,1746582660082,-450.0,0.00019577,2]
[360160346,1746582660091,-206.639879,0.00019577,2]
[360160347,1746582660100,-493.59,0.00019577,2]
[360160348,1746582660110,-450.0,0.00019577,2]
[360160349,1746582660119,-1462.7,0.00019577,2]
[360160350,1746582660129,-477.17,0.00019577,2]
[360160351,1746582660138,-1344.99,0.00019577,2]
[360160352,1746582660147,-501.92,0.00019577,2]
[360160353,1746582660157,-450.0,0.00019577,2]
[360160354,1746582660166,-501.92,0.00019577,2]
[360160355,1746582660176,-450.0,0.00019577,2]
[360160356,1746582660185,-450.0,0.00019577,2]
[360160357,1746582660195,-450.0,0.00019577,2]
[360160358,1746582660204,-297.102895,0.00019577,2]
[360160359,1746582660214,-297.102895,0.00019577,2]
[360160360,1746582660223,-990.52,0.00019577,2]
[360160361,1746582660233,-990.52,0.00019577,2]
[360160362,1746582660243,-450.0,0.00019577,2]
[360160363,1746582660253,-1595.73,0.00019577,2]
[360160364,1746582660263,-1595.73,0.00019577,2]
[360160365,1746582660274,-450.0,0.00019577,2]
[360160366,1746582660284,-450.0,0.00019577,2]
[360160367,1746582660294,-450.0,0.00019577,2]
[360160368,1746582660303,-297.102895,0.00019577,2]
[360160369,1746582660312,-297.102895,0.00019577,2]
[360160370,1746582660322,-6881.51,0.00019577,2]
[360160371,1746582660331,-450.0,0.00019577,2]
[360160372,1746582660341,-450.0,0.00019577,2]
[360160373,1746582660352,-450.0,0.00019577,2]
[360160374,1746582660361,-450.0,0.00019577,2]
[360160375,1746582660371,-450.0,0.00019577,2]
[360160376,1746582660380,-772.13,0.00019577,2]
[360160377,1746582660389,-508.95,0.00019577,2]
[360160378,1746582660399,-508.95,0.00019577,2]
[360160379,1746582660408,-425.01442445,0.00019577,2]
[360160380,1746582660418,-616.7,0.00019577,2]
[360160381,1746582660427,-616.7,0.00019577,2]
[360160382,1746582660438,-748.28,0.00019577,2]
[360160383,1746582660449,-450.0,0.00019577,2]
[360160384,1746582660459,-450.0,0.00019577,2]
[360160385,1746582660468,-450.0,0.00019577,2]
[360160386,1746582660477,-450.0,0.00019577,2]
[360160387,1746582660487,-450.0,0.00019577,2]
[360160388,1746582660496,-810.66,0.00019577,2]
[360160389,1746582660505,-2244.33,0.00019577,2]
[360160390,1746582660514,-2244.33,0.00019577,2]
[360160391,1746582660523,-569.47,0.00019577,2]
[360160392,1746582660532,-569.47,0.00019577,2]
[360160393,1746582660542,-963.33,0.00019577,2]
[360160394,1746582660551,-450.0,0.00019577,2]
[360160395,1746582660561,-450.0,0.00019577,2]
[360160396,1746582660570,-2931.97,0.00019577,2]
[360160397,1746582660579,-2931.97,0.00019577,2]
[360160398,1746582660589,-685.58,0.00019577,2]
[360160399,1746582660598,-450.0,0.00019577,2]
[360160400,1746582660607,-450.0,0.00019577,2]
[360160401,1746582660617,-450.0,0.00019577,2]
[360160402,1746582660626,-529.11,0.00019577,2]
[360160403,1746582660636,-529.11,0.00019577,2]
[360160404,1746582660645,-496.28974232,0.00019577,2]
[360160405,1746582660655,-2407.57,0.00019577,2]
[360160406,1746582660664,-2217.43,0.00019577,2]
[360160407,1746582660674,-2407.57,0.00019577,2]
[360160408,1746582660683,-450.0,0.00019577,2]
[360160409,1746582660692,-257.45212207,0.00019577,2]
[360160410,1746582660701,-798.81,0.00019577,2]
[360160411,1746582660711,-798.81,0.00019577,2]
[360160412,1746582660720,-450.0,0.00019577,2]
[360160413,1746582660729,-500.0,0.00019577,2]
[360160414,1746582660738,-500.0,0.00019577,2]
[360160415,1746582660748,-450.0,0.00019577,2]
[360160416,1746582660757,-394.05306978,0.00019577,2]
[360160417,1746582660780,-55.94693022,0.00019577,2]
[360160418,1746582660790,-457.79,0.00019577,2]
[360160419,1746582660799,-457.79,0.00019577,2]
[360160420,1746582660808,-598.18372447,0.00019578,2]
[360160421,1746582660818,-151.0,0.00019578,2]
[360160422,1746582660827,-151.0,0.00019578,2]
[360160423,1746582660836,-634.433226,0.00019578,2]
[360160424,1746582660845,-42.91501167,0.00019578,2]
[360160425,1746582661041,-151.0,0.00019576,2]
[360160426,1746582661051,-394.95174399,0.00019578,2]
[360160427,1746582661062,-196.56647034,0.00019578,2]
[360160428,1746582661071,-151.0,0.00019578,2]
[360160429,1746582661081,-151.0,0.00019578,2]
[360160430,1746582661090,-151.0,0.00019578,2]
[360160431,1746582661099,-151.0,0.00019578,2]
[360160432,1746582661109,-151.0,0.00019578,2]
[360160433,1746582661265,-151.0,0.00019578,2]
[360160434,1746582661277,-151.0,0.00019578,2]
[360160435,1746582661286,-151.0,0.00019578,2]
[360160436,1746582661295,-151.0,0.00019578,2]
[360160437,1746582661305,-185.721826,0.00019578,2]
[360160438,1746582661315,-450.0,0.00019578,2]
[360160439,1746582661324,-382.878827,0.00019578,2]
[360160440,1746582661334,-382.878827,0.00019578,2]
[360160441,1746582661346,-382.878827,0.00019578,2]
[360160442,1746582661356,-382.878827,0.00019578,2]
[360160443,1746582661366,-382.878827,0.00019578,2]
[360160444,1746582661376,-382.878827,0.00019578,2]
[360160445,1746582661387,-151.0,0.00019578,2]
[360160446,1746582661396,-450.0,0.00019578,2]
[360160447,1746582661406,-450.0,0.00019578,2]
[360160448,1746582661416,-450.0,0.00019578,2]
[360160449,1746582661425,-151.0,0.00019578,2]
[360160450,1746582661435,-151.0,0.00019578,2]
[360160451,1746582661445,-387.357687,0.00019578,2]
[360160452,1746582661454,-228.66539506,0.00019578,2]
[360160453,1746582661464,-387.357687,0.00019578,2]
[360160454,1746582661474,-151.0,0.00019578,7]
[360160455,1746582661484,-151.0,0.00019578,2]
[360160456,1746582661493,-151.0,0.00019578,2]
[360160457,1746582661503,-151.0,0.00019578,2]
[360160458,1746582661512,-213.552626,0.00019578,2]
[360160459,1746582661522,-151.882954,0.00019578,2]
[360160460,1746582661531,-545.66900499,0.00019578,2]
[360160461,1746582661540,-592.66,0.00019578,2]
[360160462,1746582661550,-592.66,0.00019578,2]
[360160463,1746582661559,-151.0,0.00019578,2]
[360160464,1746582661570,-151.0,0.00019578,2]
[360160465,1746582661579,-151.0,0.00019578,2]
[360160466,1746582661588,-151.0,0.00019578,2]
[360160467,1746582661597,-554.01,0.00019578,2]
[360160468,1746582661607,-450.0,0.00019578,2]
[360160469,1746582661616,-554.01,0.00019578,2]
[360160470,1746582661625,-151.0,0.00019578,2]
[360160471,1746582661636,-1057.93,0.00019578,2]
[360160472,1746582661646,-450.0,0.00019578,2]
[360160473,1746582661655,-617.25,0.00019578,2]
[360160474,1746582661665,-450.0,0.00019578,2]
[360160475,1746582661674,-450.0,0.00019578,2]
[360160476,1746582661683,-450.0,0.00019578,2]
[360160477,1746582661693,-646.35,0.00019578,2]
[360160478,1746582661702,-484.99,0.00019578,2]
[360160479,1746582661712,-792.57,0.00019578,2]
[360160480,1746582661721,-792.57,0.00019578,2]
[360160481,1746582661731,-1074.1645028,0.00019578,2]
[360160482,1746582661740,-450.0,0.00019578,2]
[360160483,1746582661750,-450.0,0.00019578,2]
[360160484,1746582661759,-450.0,0.00019578,2]
[360160485,1746582661768,-228.0,0.00019578,2]
[360160486,1746582661778,-506.95,0.00019578,2]
[360160487,1746582661788,-450.0,0.00019578,2]
[360160488,1746582661798,-450.0,0.00019578,2]
[360160489,1746582661808,-482.81,0.00019578,2]
[360160490,1746582661817,-305.46481733,0.00019578,2]
[360160491,1746582661827,-450.0,0.00019578,2]
[360160492,1746582661836,-151.0,0.00019578,2]
[360160493,1746582661845,-151.0,0.00019578,2]
[360160494,1746582661855,-450.0,0.00019578,2]
[360160495,1746582661865,-450.0,0.00019578,2]
[360160496,1746582661874,-450.0,0.00019578,2]
[360160497,1746582661884,-557.85,0.00019578,2]
[360160498,1746582661894,-644.54,0.00019578,2]
[360160499,1746582661905,-198.361631,0.00019578,2]
[360160500,1746582661914,-198.361631,0.00019578,2]
[360160501,1746582661924,-450.0,0.00019578,2]
[360160502,1746582661934,-541.5,0.00019578,2]
[360160503,1746582661944,-450.0,0.00019578,2]
[360160504,1746582661953,-192.682113,0.00019578,2]
[360160505,1746582661962,-192.682113,0.00019578,2]
[360160506,1746582661971,-192.682113,0.00019578,2]
[360160507,1746582661981,-192.682113,0.00019578,2]
[360160508,1746582661990,-489.23,0.00019578,2]
[360160509,1746582661999,-450.0,0.00019578,2]
[360160510,1746582662009,-450.0,0.00019578,2]
[360160511,1746582662019,-1471.69,0.00019578,2]
[360160512,1746582662028,-450.0,0.00019578,2]
[360160513,1746582662038,-450.0,0.00019578,2]
[360160514,1746582662047,-450.0,0.00019578,2]
[360160515,1746582662057,-450.0,0.00019578,2]
[360160516,1746582662067,-521.46,0.00019578,2]
[360160517,1746582662076,-450.0,0.00019578,2]
[360160518,1746582662085,-632.59,0.00019578,2]
[360160519,1746582662095,-151.0,0.00019578,2]
[360160520,1746582662104,-450.0,0.00019578,2]
[360160521,1746582662113,-789.68,0.00019578,2]
[360160522,1746582662123,-450.0,0.00019578,2]
[360160523,1746582662133,-627.15,0.00019578,2]
[360160524,1746582662143,-450.0,0.00019578,2]
[360160525,1746582662152,-528.97,0.00019578,2]
[360160526,1746582662162,-450.0,0.00019578,2]
[360160527,1746582662171,-817.16,0.00019578,2]
[360160528,1746582662181,-450.0,0.00019578,2]
[360160529,1746582662190,-458.05659939,0.00019578,2]
[360160530,1746582662200,-450.0,0.00019578,2]
[360160531,1746582662209,-450.0,0.00019578,2]
[360160532,1746582662220,-450.0,0.00019578,2]
[360160533,1746582662230,-677.07,0.00019578,2]
[360160534,1746582662240,-695.19,0.00019578,2]
[360160535,1746582662250,-450.0,0.00019578,2]
[360160536,1746582662260,-450.0,0.00019578,2]
[360160537,1746582662270,-450.0,0.00019578,2]
[360160538,1746582662284,-151.0,0.00019578,2]
[360160539,1746582662293,-151.0,0.00019578,2]
[360160540,1746582662303,-450.0,0.00019578,2]
[360160541,1746582662312,-1016.85,0.00019578,2]
[360160542,1746582662322,-949.38,0.00019578,2]
[360160543,1746582662331,-920.95,0.00019578,2]
[360160544,1746582662340,-922.18,0.00019578,2]
[360160545,1746582662349,-450.0,0.00019578,2]
[360160546,1746582662359,-450.0,0.00019578,2]
[360160547,1746582662369,-682.16,0.00019578,2]
[360160548,1746582662378,-450.0,0.00019578,2]
[360160549,1746582662387,-450.0,0.00019578,2]
[360160550,1746582662397,-450.0,0.00019578,2]
[360160551,1746582662407,-682.65,0.00019578,2]
[360160552,1746582662417,-450.0,0.00019578,2]
[360160553,1746582662426,-450.0,0.00019578,2]
[360160554,1746582662434,-450.0,0.00019578,2]
[360160555,1746582662444,-768.12,0.00019578,2]
[360160556,1746582662453,-450.0,0.00019578,2]
[360160557,1746582662462,-466.44,0.00019578,2]
[360160558,1746582662471,-1409.65,0.00019578,2]
[360160559,1746582662480,-1013.85,0.00019578,2]
[360160560,1746582662489,-450.0,0.00019578,2]
[360160561,1746582662498,-477.13,0.00019578,2]
[360160562,1746582662508,-450.0,0.00019578,2]
[360160563,1746582662517,-450.0,0.00019578,2]
[360160564,1746582662526,-710.81,0.00019578,2]
[360160565,1746582662535,-674.99,0.00019578,2]
[360160566,1746582662544,-881.57,0.00019578,2]
[360160567,1746582662554,-450.0,0.00019578,2]
[360160568,1746582662563,-450.0,0.00019578,2]
[360160569,1746582662572,-1672.88,0.00019578,2]
[360160570,1746582662581,-1240.98,0.00019578,2]
[360160571,1746582662590,-622.67,0.00019578,2]
[360160572,1746582662599,-450.0,0.00019578,2]
[360160573,1746582662608,-450.0,0.00019578,2]
[360160574,1746582662617,-989.98,0.00019578,2]
[360160575,1746582662626,-2065.68,0.00019578,2]
[360160576,1746582662635,-455.59,0.00019578,2]
[360160577,1746582662645,-1558.39,0.00019578,2]
[360160578,1746582662654,-1766.43,0.00019578,2]
[360160579,1746582662663,-347.00853572,0.00019578,2]
[360160580,1746582662672,-450.0,0.00019578,2]
[360160581,1746582662681,-469.15,0.00019578,2]
[360160582,1746582662690,-515.51,0.00019578,2]
[360160583,1746582662699,-975.48,0.00019578,2]
[360160584,1746582662709,-450.0,0.00019578,2]
[360160585,1746582662718,-1702.78,0.00019578,2]
[360160586,1746582662727,-2037.93,0.00019578,2]
[360160587,1746582662737,-739.06,0.00019578,2]
[360160588,1746582662746,-151.0,0.00019578,2]
[360160589,1746582662755,-788.8,0.00019578,2]
[360160590,1746582662765,-1002.06,0.00019578,2]
[360160591,1746582662774,-321.54498913,0.00019578,2]
[360160592,1746582662783,-450.0,0.00019578,2]
[360160593,1746582662793,-1195.37,0.00019578,2]
[360160594,1746582662802,-1618.6,0.00019578,2]
[360160595,1746582662810,-1065.09,0.00019578,2]
[360160596,1746582662819,-2046.98,0.00019578,2]
[360160597,1746582662829,-450.0,0.00019578,2]
[360160598,1746582662838,-1520.3,0.00019578,2]
[360160599,1746582662847,-558.85,0.00019578,2]
[360160600,1746582662856,-2012.41,0.00019578,2]
[360160601,1746582662865,-451.33,0.00019578,2]
[360160602,1746582662874,-312.147462,0.00019578,2]
[360160603,1746582662883,-312.147462,0.00019578,2]
[360160604,1746582662892,-685.61,0.00019578,2]
[360160605,1746582662902,-450.0,0.00019578,2]
[360160606,1746582662911,-450.0,0.00019578,2]
[360160607,1746582662921,-649.44,0.00019578,2]
[360160608,1746582662930,-312.147462,0.00019578,2]
[360160609,1746582662939,-312.147462,0.00019578,2]
[360160610,1746582662949,-1348.17,0.00019578,2]
[360160611,1746582662958,-2072.07,0.00019578,2]
[360160612,1746582662966,-284.987628,0.00019578,2]
[360160613,1746582662975,-284.987628,0.00019578,2]
[360160614,1746582662985,-1913.53,0.00019578,2]
[360160615,1746582662994,-1048.2,0.00019578,2]
[360160616,1746582663003,-284.987628,0.00019578,2]
[360160617,1746582663013,-284.987628,0.00019578,2]
[360160618,1746582663022,-936.67,0.00019578,2]
[360160619,1746582663032,-322.460176,0.00019578,2]
[360160620,1746582663041,-322.460176,0.00019578,2]
[360160621,1746582663050,-450.0,0.00019578,2]
[360160622,1746582663060,-673.81,0.00019578,2]
[360160623,1746582663070,-151.0,0.00019578,2]
[360160624,1746582663080,-151.0,0.00019578,2]
[360160625,1746582663091,-526.92,0.00019578,2]
[360160626,1746582663100,-656.57,0.00019578,2]
[360160627,1746582663110,-322.460176,0.00019578,2]
[360160628,1746582663120,-450.0,0.00019578,2]
[360160629,1746582663129,-322.460176,0.00019578,2]
[360160630,1746582663139,-4584.07,0.00019578,2]
[360160631,1746582663149,-1148.6,0.00019578,2]
[360160632,1746582663159,-450.0,0.00019578,2]
[360160633,1746582663168,-35302.81,0.00019578,2]
[360160634,1746582663178,-44752.6,0.00019578,2]
[360160635,1746582663188,-1124.54,0.00019578,2]
[360160636,1746582663198,-843.02,0.00019578,2]
[360160637,1746582663207,-2170.86,0.00019578,2]
[360160638,1746582663218,-524.86,0.00019578,2]
[360160639,1746582663227,-450.0,0.00019578,2]
[360160640,1746582663237,-934.11,0.00019578,2]
[360160641,1746582663247,-151.0,0.00019578,2]
[360160642,1746582663257,-450.0,0.00019578,2]
[360160643,1746582663269,-450.0,0.00019578,2]
[360160644,1746582663279,-1280.82,0.00019578,2]
[360160645,1746582663289,-450.0,0.00019578,2]
[360160646,1746582663299,-2715.06,0.00019578,2]
[360160647,1746582663309,-1788.55,0.00019578,2]
[360160648,1746582663318,-9938.79,0.00019578,2]
[360160649,1746582663327,-663.6,0.00019578,2]
[360160650,1746582663336,-1456.88,0.00019578,2]
[360160651,1746582663346,-450.0,0.00019578,2]
[360160652,1746582663358,-876.67,0.00019578,2]
[360160653,1746582663368,-450.0,0.00019578,2]
[360160654,1746582663378,-450.0,0.00019578,2]
[360160655,1746582663388,-493.59,0.00019578,2]
[360160656,1746582663397,-450.0,0.00019578,2]
[360160657,1746582663406,-1344.99,0.00019578,2]
[360160658,1746582663416,-501.92,0.00019578,2]
[360160659,1746582663425,-450.0,0.00019578,2]
[360160660,1746582663434,-450.0,0.00019578,2]
[360160661,1746582663444,-297.102895,0.00019578,2]
[360160662,1746582663454,-990.52,0.00019578,2]
[360160663,1746582663463,-1595.73,0.00019578,2]
[360160664,1746582663472,-450.0,0.00019578,2]
[360160665,1746582663481,-450.0,0.00019578,2]
[360160666,1746582663491,-297.102895,0.00019578,2]
[360160667,1746582663500,-6881.51,0.00019578,2]
[360160668,1746582663509,-450.0,0.00019578,2]
[360160669,1746582663519,-772.13,0.00019578,2]
[360160670,1746582663527,-508.95,0.00019578,2]
[360160671,1746582663537,-616.7,0.00019578,2]
[360160672,1746582663547,-450.0,0.00019578,2]
[360160673,1746582663557,-450.0,0.00019578,2]
[360160674,1746582663567,-2244.33,0.00019578,2]
[360160675,1746582663577,-569.47,0.00019578,2]
[360160676,1746582663587,-450.0,0.00019578,2]
[360160677,1746582663596,-2931.97,0.00019578,2]
[360160678,1746582663605,-450.0,0.00019578,2]
[360160679,1746582663614,-529.11,0.00019578,2]
[360160680,1746582663624,-2407.57,0.00019578,2]
[360160681,1746582663634,-798.81,0.00019578,2]
[360160682,1746582663644,-500.0,0.00019578,2]
[360160683,1746582663654,-450.0,0.00019578,2]
[360160684,1746582663663,-457.79,0.00019578,2]
[360160685,1746582663673,-151.0,0.00019579,2]
[360160686,1746582663683,-151.0,0.00019579,2]
[360160687,1746582663693,-154.098916,0.00019579,2]
[360160688,1746582663702,-151.0,0.00019579,2]
[360160689,1746582663712,-151.0,0.00019579,2]
[360160690,1746582663722,-204.446135,0.00019579,2]
[360160691,1746582663732,-634.433226,0.00019579,2]
[360160692,1746582663742,-634.433226,0.00019579,2]
[360160693,1746582663751,-634.433226,0.00019579,2]
[360160694,1746582663761,-634.433226,0.00019579,2]
[360160695,1746582663770,-151.0,0.00019579,2]
[360160696,1746582663780,-217.269877,0.00019579,2]
[360160697,1746582663789,-382.878827,0.00019579,2]
[360160698,1746582663799,-382.878827,0.00019579,2]
[360160699,1746582663808,-153.071594,0.00019579,2]
[360160700,1746582663819,-151.0,0.00019579,2]
[360160701,1746582663828,-450.0,0.00019579,2]
[360160702,1746582663838,-450.0,0.00019579,2]
[360160703,1746582663848,-1057.93,0.00019579,2]
[360160704,1746582663857,-450.0,0.00019579,2]
[360160705,1746582663867,-450.0,0.00019579,2]
[360160706,1746582663878,-506.95,0.00019579,2]
[360160707,1746582663888,-450.0,0.00019579,2]
[360160708,1746582663899,-450.0,0.00019579,2]
[360160709,1746582663909,-450.0,0.00019579,2]
[360160710,1746582663918,-1471.69,0.00019579,2]
[360160711,1746582663927,-450.0,0.00019579,2]
[360160712,1746582663937,-632.59,0.00019579,2]
[360160713,1746582663946,-560.95581284,0.00019579,2]
[360160714,1746582663955,-627.15,0.00019579,2]
[360160715,1746582663965,-528.97,0.00019579,2]
[360160716,1746582663975,-695.19,0.00019579,2]
[360160717,1746582663984,-450.0,0.00019579,2]
[360160718,1746582663993,-450.0,0.00019579,2]
[360160719,1746582664003,-1016.85,0.00019579,2]
[360160720,1746582664012,-682.16,0.00019579,2]
[360160721,1746582664021,-450.0,0.00019579,2]
[360160722,1746582664031,-682.65,0.00019579,2]
[360160723,1746582664040,-450.0,0.00019579,2]
[360160724,1746582664050,-450.0,0.00019579,2]
[360160725,1746582664059,-768.12,0.00019579,2]
[360160726,1746582664069,-466.44,0.00019579,2]
[360160727,1746582664079,-450.0,0.00019579,2]
[360160728,1746582664089,-477.13,0.00019579,2]
[360160729,1746582664098,-450.0,0.00019579,2]
[360160730,1746582664108,-450.0,0.00019579,2]
[360160731,1746582664118,-455.59,0.00019579,2]
[360160732,1746582664128,-151.0,0.00019579,2]
[360160733,1746582664138,-649.44,0.00019579,2]
[360160734,1746582664148,-1913.53,0.00019579,2]
[360160735,1746582664157,-450.0,0.00019579,2]
[360160736,1746582664167,-1148.6,0.00019579,2]
[360160737,1746582664177,-1124.54,0.00019579,2]
[360160738,1746582664186,-1280.82,0.00019579,2]
[360160739,1746582664196,-450.0,0.00019579,2]
[360160740,1746582664206,-493.59,0.00019579,2]
[360160741,1746582664215,-297.102895,0.00019579,2]
[360160742,1746582664225,-990.52,0.00019579,2]
[360160743,1746582664235,-297.102895,0.00019579,2]
[360160744,1746582664246,-450.0,0.00019579,2]
[360160745,1746582664255,-151.0,0.0001958,2]
[360160746,1746582664266,-1907.662376,0.0001958,2]
[360160747,1746582664277,-1907.662376,0.0001958,2]
[360160748,1746582664287,-151.0,0.0001958,2]
[360160749,1746582664297,-151.0,0.0001958,2]
[360160750,1746582664307,-170.488011,0.0001958,2]
[360160751,1746582664319,-199.78253,0.0001958,2]
[360160752,1746582664329,-199.78253,0.0001958,2]
[360160753,1746582664339,-151.0,0.0001958,2]
[360160754,1746582664348,-151.0,0.0001958,2]
[360160755,1746582664358,-151.0,0.0001958,2]
[360160756,1746582664368,-151.0,0.0001958,2]
[360160757,1746582664380,-187.5928,0.0001958,2]
[360160758,1746582664390,-151.0,0.0001958,2]
[360160759,1746582664400,-185.157984,0.0001958,2]
[360160760,1746582664409,-185.157984,0.0001958,2]
[360160761,1746582664420,-151.0,0.0001958,2]
[360160762,1746582664429,-151.0,0.0001958,2]
[360160763,1746582664440,-634.433226,0.0001958,2]
[360160764,1746582664450,-634.433226,0.0001958,2]
[360160765,1746582664460,-244.599237,0.0001958,2]
[360160766,1746582664469,-151.0,0.0001958,2]
[360160767,1746582664479,-151.0,0.0001958,2]
[360160768,1746582664488,-151.0,0.0001958,2]
[360160769,1746582664498,-450.0,0.00019581,2]
[360160770,1746582664507,-2061.48,0.00019581,2]
[360160771,1746582664654,-1574.72,0.00019581,2]
[360160772,1746582664664,-450.0,0.00019581,2]
[360160773,1746582664674,-1226.66,0.00019581,2]
[360160774,1746582664683,-576.25,0.00019581,2]
[360160775,1746582664692,-515.77,0.00019581,2]
[360160776,1746582664701,-677.89,0.00019581,2]
[360160777,1746582664711,-482.43,0.00019581,2]
[360160778,1746582664723,-1747.78,0.00019581,2]
[360160779,1746582664732,-1462.7,0.00019581,2]
[360160780,1746582664742,-477.17,0.00019581,2]
[360160781,1746582664751,-450.0,0.00019581,2]
[360160782,1746582664762,-450.0,0.00019581,2]
[360160783,1746582664771,-748.28,0.00019581,2]
[360160784,1746582664780,-810.66,0.00019581,2]
[360160785,1746582664789,-685.58,0.00019581,2]
[360160786,1746582664799,-450.0,0.00019581,2]
[360160787,1746582664809,-450.0,0.00019581,2]
[360160788,1746582664820,-592.66,0.00019582,2]
[360160789,1746582664831,-554.01,0.00019582,2]
[360160790,1746582664841,-450.0,0.00019582,2]
[360160791,1746582664850,-792.57,0.00019582,2]
[360160792,1746582664860,-151.0,0.00019582,2]
[360160793,1746582664871,-192.682113,0.00019582,2]
[360160794,1746582664884,-192.682113,0.00019582,2]
[360160795,1746582664893,-151.0,0.00019582,2]
[360160796,1746582664903,-312.147462,0.00019582,2]
[360160797,1746582664914,-312.147462,0.00019582,2]
[360160798,1746582664925,-284.987628,0.00019582,2]
[360160799,1746582664934,-284.987628,0.00019582,2]
[360160800,1746582664945,-322.460176,0.00019582,2]
[360160801,1746582664955,-151.0,0.00019582,2]
[360160802,1746582664964,-322.460176,0.00019582,2]
[360160803,1746582664974,-259.236109,0.00019582,2]
[360160804,1746582664984,-151.0,0.00019583,2]
[360160805,1746582664996,-439.155032,0.00019583,2]
[360160806,1746582665005,-439.155032,0.00019583,2]
[360160807,1746582665016,-151.0,0.00019583,2]
[360160808,1746582665027,-387.357687,0.00019583,2]
[360160809,1746582665037,-387.357687,0.00019583,2]
[360160810,1746582665047,-151.0,0.00019583,2]
[360160811,1746582665056,-363.474264,0.00019583,2]
[360160812,1746582665065,-363.474264,0.00019583,2]
[360160813,1746582665074,-198.361631,0.00019583,2]
[360160814,1746582665084,-198.361631,0.00019583,2]
[360160815,1746582665094,-151.0,0.00019584,2]
[360160816,1746582665103,-151.0,0.00019584,2]
[360160817,1746582665113,-199.78253,0.00019584,2]
[360160818,1746582665122,-199.78253,0.00019584,2]
[360160819,1746582665132,-1907.662376,0.00019591,2]
[360160820,1746582665142,-1907.662376,0.00019591,2]
[360160821,1746582665152,-5551.474,0.00019608,2]
[360160822,1746582665161,-227.588,0.00019608,2]
[360160823,1746582665171,-151.0,0.00019611,2]
[360160824,1746582665180,-151.0,0.00019611,2]
[360160825,1746582665190,-151.0,0.00019612,2]
[360160826,1746582665199,-151.0,0.00019612,2]
[360160827,1746582665208,-151.0,0.00019612,2]
[360160828,1746582665217,-151.0,0.00019613,2]
[360160829,1746582665227,-151.0,0.00019619,2]
[360160830,1746582665236,-450.0,0.00019642,2]
[360160831,1746582665248,-667.95,0.00019642,2]
[360160832,1746582665257,-508.49,0.00019642,2]
[360160833,1746582665266,-450.0,0.00019642,2]
[360160834,1746582665280,-1030.49,0.00019642,2]
[360160835,1746582665289,-609.91,0.00019642,2]
[360160836,1746582665299,-1989.46,0.00019642,2]